lending/lending_fUSD_20250808
["ID","MTS","AMOUNT","RATE_DAILY","PERIOD"]
[377980361,1754645443597,-633.75,0.00018772,2]
[377980363,1754645443607,-400.0,0.00018772,2]
[377980365,1754645443617,-488.11,0.00018772,2]
[377980367,1754645443626,-1156.75,0.00018772,2]
[377980369,1754645443635,-400.0,0.00018772,2]
[377980371,1754645443645,-489.19,0.00018772,2]
[377980373,1754645443655,-814.84,0.00018772,2]
[377980375,1754645443664,-2215.31,0.00018772,2]
[377980377,1754645443674,-795.98,0.00018772,2]
[377980379,1754645443683,-599.65,0.00018772,2]
[377980381,1754645443693,-2000.76,0.00018772,2]
[377980383,1754645443703,-452.47,0.00018772,2]
[377980385,1754645443712,-1462.3,0.00018772,2]
[377980387,1754645443722,-832.76,0.00018772,2]
[377980389,1754645443731,-400.0,0.00018772,2]
[377980391,1754645443740,-513.79,0.00018772,2]
[377980393,1754645443750,-400.0,0.00018772,2]
[377980395,1754645443759,-1448.52,0.00018772,2]
[377980397,1754645443769,-400.0,0.00018772,2]
[377980399,1754645443778,-1371.87,0.00018772,2]
[377980401,1754645443788,-1329.96,0.00018772,2]
[377980403,1754645443797,-6472.27,0.00018772,2]
[377980405,1754645443807,-667.36050767,0.00018773,2]
[377980407,1754645443816,-980.41,0.00018773,2]
[377980409,1754645443826,-610.15,0.00018773,2]
[377980412,1754645443835,-3320.6,0.00018773,2]
[377980413,1754645443845,-1360.88,0.00018773,2]
[377980415,1754645443854,-1314.2,0.00018773,2]
[377980418,1754645443864,-1104.37,0.00018773,2]
[377980420,1754645443874,-1803.96,0.00018773,2]
[377980421,1754645443883,-1146.45,0.00018773,2]
[377980422,1754645443892,-1693.28,0.00018773,2]
[377980423,1754645443901,-1090.79,0.00018773,2]
[377980424,1754645443911,-655.07284216,0.00018774,2]
[377980425,1754645443921,-150.0,0.00018778,2]
[377980426,1754645443930,-500.0,0.00018778,2]
[377980427,1754645443940,-649.35535409,0.00018783,2]
[377980428,1754645443950,-667.36050767,0.00018798,2]
[377980429,1754645443959,-500.0,0.00018799,2]
[377980430,1754645443967,-655.07284216,0.00018799,2]
[377980431,1754645443977,-302.16,0.000188,2]
[377980432,1754645443986,-330.44,0.000188,2]
[377980433,1754645443995,-156.49043,0.0001881,2]
[377980434,1754645444004,-500.0,0.00018816,2]
[377980436,1754645444015,-667.36050767,0.00018824,2]
[377980438,1754645444024,-655.07284216,0.00018825,2]
[377980440,1754645444033,-211.62674257,0.00018834,2]
[377980442,1754645444043,-842.44706758,0.00018834,2]
[377980444,1754645444052,-457.64618948,0.00018834,2]
[377980446,1754645444061,-160.0,0.00018834,2]
[377980447,1754645444070,-667.36050767,0.00018849,2]
[377980449,1754645444080,-655.07284216,0.0001885,2]
[377980451,1754645444089,-150.0,0.00018852,2]
[377980453,1754645444098,-663.719,0.00018874,2]
[377980455,1754645444107,-667.36050767,0.00018875,2]
[377980457,1754645444117,-655.07284216,0.00018876,2]
[377980459,1754645444126,-150.0,0.00018885,2]
[377980461,1754645444135,-3784.8206,0.000189,2]
[377980463,1754645444144,-467.56,0.000189,2]
[377980465,1754645444154,-163.88770737,0.000189,2]
[377980467,1754645444163,-667.36050767,0.000189,2]
[377980469,1754645444173,-1591.82,0.000189,2]
[377980471,1754645444182,-1090.21759628,0.000189,2]
[377980474,1754645444194,-714.34,0.000189,2]
[377980476,1754645444204,-330.35562614,0.000189,2]
[377980478,1754645444213,-206.88692928,0.000189,3]
[377980479,1754645444223,-751.81483726,0.000189,2]
[377980482,1754645444233,-1091.81,0.000189,2]
[377980483,1754645444243,-3826.70043494,0.000189,2]
[377980486,1754645444253,-170.35350603,0.000189,2]
[377980488,1754645444262,-655.07284216,0.00018901,2]
[377980490,1754645444271,-200.0,0.0001891,2]
[377980492,1754645444281,-156.49043,0.0001892,2]
[377980493,1754645444290,-170.0,0.00018932,2]
[377980496,1754645444300,-150.0,0.00018938,2]
[377980497,1754645444310,-535.06,0.00018938,2]
[377980500,1754645444319,-165.55,0.00018938,2]
[377980501,1754645444329,-170.2,0.00018938,2]
[377980503,1754645444339,-500.0,0.00018973,2]
[377980505,1754645444348,-504.64306384,0.00018973,2]
[377980507,1754645444357,-501.32432422,0.00018973,2]
[377980509,1754645444367,-342.42922705,0.00018973,2]
[377980511,1754645444377,-500.0,0.00018973,2]
[377980513,1754645444386,-500.0,0.00018973,2]
[377980515,1754645444395,-500.0,0.00018973,2]
[377980517,1754645444405,-500.0,0.00018973,2]
[377980519,1754645444414,-500.0,0.00018973,2]
[377980521,1754645444423,-500.0,0.00018973,2]
[377980523,1754645444433,-500.0,0.00018973,2]
[377980525,1754645444445,-350.0,0.00018981,2]
[377980527,1754645444456,-150.0,0.00018981,2]
[377980529,1754645444465,-590.94951185,0.00018982,2]
[377980531,1754645444475,-753.17094647,0.00018983,2]
[377980533,1754645444485,-915.3923811,0.00018984,2]
[377980535,1754645444495,-1077.61381572,0.00018985,2]
[377980537,1754645444504,-10233.25067429,0.00018986,2]
[377980539,1754645444513,-1239.83525034,0.00018986,2]
[377980541,1754645444524,-1402.05668497,0.00018987,2]
[377980543,1754645444533,-1564.27811959,0.00018988,2]
[377980545,1754645444543,-1726.49955422,0.00018989,2]
[377980547,1754645444553,-20691.33759105,0.0001899,2]
[377980549,1754645444562,-1888.72098884,0.0001899,2]
[377980551,1754645444571,-239.4566,0.00018999,2]
[377980553,1754645444581,-475.34,0.00018999,2]
[377980555,1754645444590,-400.0,0.00018999,2]
[377980557,1754645444600,-391.28977982,0.00018999,2]
[377980559,1754645444609,-1000.0,0.00018999,2]
[377980561,1754645444618,-526.87,0.00018999,2]
[377980563,1754645444627,-400.0,0.00018999,2]
[377980565,1754645444637,-400.0,0.00018999,2]
[377980567,1754645444646,-400.0,0.00018999,2]
[377980569,1754645444655,-400.0,0.00018999,2]
[377980571,1754645444664,-400.0,0.00018999,2]
[377980573,1754645444674,-400.0,0.00018999,2]
[377980575,1754645444683,-237.96346408,0.00018999,2]
[377980577,1754645444693,-445.59930254,0.00018999,2]
[377980579,1754645444703,-1000.0,0.00018999,2]
[377980581,1754645444712,-400.0,0.00018999,2]
[377980583,1754645444721,-652.48,0.00018999,2]
[377980585,1754645444730,-400.0,0.00018999,2]
[377980587,1754645444740,-400.0,0.00018999,2]
[377980589,1754645444749,-891.56,0.00018999,2]
[377980591,1754645444759,-204.43798119,0.00018999,2]
[377980593,1754645444769,-400.0,0.00018999,2]
[377980595,1754645444779,-400.0,0.00018999,2]
[377980597,1754645444788,-400.0,0.00018999,2]
[377980600,1754645444798,-400.0,0.00018999,2]
[377980601,1754645444807,-464.14,0.00018999,2]
[377980603,1754645444817,-400.0,0.00018999,2]
[377980605,1754645444826,-482.9,0.00018999,2]
[377980607,1754645444835,-400.0,0.00018999,2]
[377980609,1754645444844,-537.48,0.00018999,2]
[377980611,1754645444853,-820.29,0.00018999,2]
[377980614,1754645444863,-493.51,0.00018999,2]
[377980616,1754645444873,-400.0,0.00018999,2]
[377980618,1754645444883,-400.0,0.00018999,2]
[377980620,1754645444894,-400.0,0.00018999,2]
[377980622,1754645444903,-473.83,0.00018999,2]
[377980624,1754645444912,-400.0,0.00018999,2]
[377980626,1754645444922,-431.01,0.00018999,2]
[377980628,1754645444931,-400.0,0.00018999,2]
[377980630,1754645444940,-400.0,0.00018999,2]
[377980632,1754645444950,-859.17,0.00018999,2]
[377980634,1754645444959,-400.0,0.00018999,2]
[377980636,1754645444969,-400.0,0.00018999,2]
[377980638,1754645444978,-734.32,0.00018999,2]
[377980640,1754645444988,-400.0,0.00018999,2]
[377980642,1754645444997,-516.75079996,0.00018999,2]
[377980644,1754645445007,-400.0,0.00018999,2]
[377980646,1754645445017,-400.0,0.00018999,2]
[377980648,1754645445027,-400.0,0.00018999,2]
[377980650,1754645445037,-400.0,0.00018999,2]
[377980652,1754645445046,-400.0,0.00018999,2]
[377980654,1754645445055,-405.81,0.00018999,2]
[377980656,1754645445064,-415.15571784,0.00018999,2]
[377980658,1754645445074,-400.0,0.00018999,2]
[377980660,1754645445083,-400.0,0.00018999,2]
[377980662,1754645445093,-732.57,0.00018999,2]
[377980664,1754645445102,-453.84,0.00018999,2]
[377980666,1754645445112,-400.0,0.00018999,2]
[377980668,1754645445121,-400.0,0.00018999,2]
[377980670,1754645445131,-400.0,0.00018999,2]
[377980672,1754645445140,-828.89,0.00018999,2]
[377980674,1754645445149,-400.0,0.00018999,2]
[377980676,1754645445158,-400.0,0.00018999,2]
[377980678,1754645445168,-575.5,0.00018999,2]
[377980680,1754645445177,-400.0,0.00018999,2]
[377980682,1754645445188,-400.0,0.00018999,2]
[377980684,1754645445198,-400.0,0.00018999,2]
[377980686,1754645445207,-414.68630289,0.00018999,2]
[377980688,1754645445216,-400.0,0.00018999,2]
[377980690,1754645445225,-580.43,0.00018999,2]
[377980692,1754645445235,-400.0,0.00018999,2]
[377980694,1754645445244,-401.81021876,0.00018999,2]
[377980696,1754645445254,-400.0,0.00018999,2]
[377980698,1754645445263,-400.0,0.00018999,2]
[377980700,1754645445273,-400.0,0.00018999,2]
[377980702,1754645445283,-400.0,0.00018999,2]
[377980704,1754645445292,-400.0,0.00018999,2]
[377980706,1754645445306,-400.0,0.00018999,2]
[377980708,1754645445315,-400.0,0.00018999,2]
[377980710,1754645445325,-709.83,0.00018999,2]
[377980712,1754645445335,-400.0,0.00018999,2]
[377980714,1754645445344,-400.0,0.00018999,2]
[377980716,1754645445353,-409.03,0.00018999,2]
[377980718,1754645445363,-402.00003901,0.00018999,2]
[377980720,1754645445372,-400.0,0.00018999,2]
[377980722,1754645445382,-509.65,0.00018999,2]
[377980724,1754645445391,-401.41768345,0.00018999,2]
[377980726,1754645445400,-400.0,0.00018999,2]
[377980728,1754645445410,-400.0,0.00018999,2]
[377980730,1754645445419,-400.0,0.00018999,2]
[377980732,1754645445428,-412.43292693,0.00018999,2]
[377980734,1754645445439,-540.08,0.00018999,2]
[377980736,1754645445453,-455.77,0.00018999,2]
[377980738,1754645445462,-400.0,0.00018999,2]
[377980740,1754645445472,-405.15179473,0.00018999,2]
[377980742,1754645445481,-401.57170377,0.00018999,2]
[377980744,1754645445491,-400.0,0.00018999,2]
[377980746,1754645445500,-400.0,0.00018999,2]
[377980748,1754645445509,-400.0,0.00018999,2]
[377980750,1754645445518,-400.0,0.00018999,2]
[377980752,1754645445529,-400.0,0.00018999,2]
[377980754,1754645445538,-400.0,0.00018999,2]
[377980756,1754645445547,-466.68,0.00018999,2]
[377980758,1754645445556,-400.0,0.00018999,2]
[377980760,1754645445565,-400.0,0.00018999,2]
[377980762,1754645445575,-400.0,0.00018999,2]
[377980764,1754645445584,-468.41,0.00018999,2]
[377980766,1754645445593,-400.0,0.00018999,2]
[377980768,1754645445602,-319.5075685,0.00018999,2]
[377980770,1754645445612,-400.0,0.00018999,2]
[377980772,1754645445621,-400.0,0.00018999,2]
[377980774,1754645445631,-557.6,0.00018999,2]
[377980776,1754645445640,-400.0,0.00018999,2]
[377980778,1754645445649,-400.0,0.00018999,2]
[377980780,1754645445659,-406.76,0.00018999,2]
[377980782,1754645445670,-619.53,0.00018999,2]
[377980784,1754645445679,-400.0,0.00018999,2]
[377980786,1754645445689,-460.41,0.00018999,2]
[377980788,1754645445698,-400.0,0.00018999,2]
[377980790,1754645445708,-460.15,0.00018999,2]
[377980792,1754645445719,-400.0,0.00018999,2]
[377980794,1754645445728,-400.0,0.00018999,2]
[377980796,1754645445737,-400.0,0.00018999,2]
[377980798,1754645445747,-580.84,0.00018999,2]
[377980800,1754645445756,-400.0,0.00018999,2]
[377980802,1754645445766,-592.1,0.00018999,2]
[377980804,1754645445775,-771.6,0.00018999,2]
[377980806,1754645445785,-574.78,0.00018999,2]
[377980818,1754645445877,-400.0,0.00018999,2]
[377980820,1754645445887,-400.0,0.00018999,2]
[377980821,1754645445896,-1000.0,0.00018999,2]
[377980822,1754645445906,-400.0,0.00018999,2]
[377980823,1754645445915,-400.0,0.00018999,2]
[377980825,1754645445924,-431.75,0.00018999,2]
[377980827,1754645445933,-400.0,0.00018999,2]
[377980829,1754645445943,-528.74,0.00018999,2]
[377980831,1754645445952,-400.0,0.00018999,2]
[377980833,1754645445961,-400.0,0.00018999,2]
[377980835,1754645445971,-834.7,0.00018999,2]
[377980837,1754645445980,-400.0,0.00018999,2]
[377980839,1754645445989,-400.0,0.00018999,2]
[377980841,1754645445998,-400.0,0.00018999,2]
[377980843,1754645446009,-400.0,0.00018999,2]
[377980845,1754645446019,-577.58,0.00018999,2]
[377980847,1754645446028,-550.19,0.00018999,2]
[377980849,1754645446038,-581.44,0.00018999,2]
[377980851,1754645446047,-400.0,0.00018999,2]
[377980853,1754645446056,-428.07,0.00018999,2]
[377980855,1754645446066,-662.17,0.00018999,2]
[377980857,1754645446074,-429.99,0.00018999,2]
[377980859,1754645446084,-400.0,0.00018999,2]
[377980861,1754645446093,-480.61,0.00018999,2]
[377980863,1754645446102,-400.0,0.00018999,2]
[377980865,1754645446112,-627.73,0.00018999,2]
[377980867,1754645446121,-400.0,0.00018999,2]
[377980868,1754645446130,-639.32,0.00018999,2]
[377980870,1754645446139,-454.2,0.00018999,2]
[377980873,1754645446149,-400.0,0.00018999,2]
[377980874,1754645446158,-400.0,0.00018999,2]
[377980877,1754645446167,-471.09,0.00018999,2]
[377980879,1754645446176,-400.0,0.00018999,2]
[377980881,1754645446185,-400.0,0.00018999,2]
[377980883,1754645446195,-430.71,0.00018999,2]
[377980885,1754645446204,-519.85,0.00018999,2]
[377980887,1754645446213,-400.0,0.00018999,2]
[377980889,1754645446222,-400.0,0.00018999,2]
[377980891,1754645446231,-400.0,0.00018999,2]
[377980893,1754645446240,-400.0,0.00018999,2]
[377980895,1754645446250,-400.0,0.00018999,2]
[377980897,1754645446259,-400.0,0.00018999,2]
[377980899,1754645446267,-400.0,0.00018999,2]
[377980901,1754645446276,-400.0,0.00018999,2]
[377980903,1754645446285,-728.59,0.00018999,2]
[377980905,1754645446294,-400.0,0.00018999,2]
[377980907,1754645446303,-449.29182519,0.00018999,2]
[377980909,1754645446313,-593.75,0.00018999,2]
[377980911,1754645446321,-400.0,0.00018999,2]
[377980913,1754645446331,-400.0,0.00018999,2]
[377980915,1754645446340,-471.88,0.00018999,2]
[377980918,1754645446351,-400.0,0.00018999,2]
[377980921,1754645446360,-400.0,0.00018999,2]
[377980924,1754645446370,-400.0,0.00018999,2]
[377980926,1754645446379,-400.0,0.00018999,2]
[377980928,1754645446388,-418.2,0.00018999,2]
[377980930,1754645446397,-462.72,0.00018999,2]
[377980932,1754645446406,-654.85,0.00018999,2]
[377980934,1754645446415,-400.0,0.00018999,2]
[377980936,1754645446425,-400.0,0.00018999,2]
[377980938,1754645446435,-649.24,0.00018999,2]
[377980940,1754645446449,-400.0,0.00018999,2]
[377980942,1754645446460,-400.0,0.00018999,2]
[377980944,1754645446469,-400.0,0.00018999,2]
[377980946,1754645446478,-400.0,0.00018999,2]
[377980948,1754645446489,-400.0,0.00018999,2]
[377980950,1754645446498,-400.0,0.00018999,2]
[377980952,1754645446507,-400.0,0.00018999,2]
[377980954,1754645446516,-400.0,0.00018999,2]
[377980956,1754645446527,-793.43,0.00018999,2]
[377980958,1754645446537,-784.45,0.00018999,2]
[377980960,1754645446546,-390.15996319,0.00018999,2]
[377980962,1754645446555,-400.0,0.00018999,2]
[377980964,1754645446564,-400.0,0.00018999,2]
[377980966,1754645446573,-400.0,0.00018999,2]
[377980968,1754645446582,-400.0,0.00018999,2]
[377980970,1754645446591,-835.62,0.00018999,2]
[377980972,1754645446600,-472.67,0.00018999,2]
[377980974,1754645446610,-400.0,0.00018999,2]
[377980976,1754645446621,-400.0,0.00018999,2]
[377980978,1754645446631,-409.24,0.00018999,2]
[377980980,1754645446640,-645.63,0.00018999,2]
[377980982,1754645446649,-400.0,0.00018999,2]
[377980984,1754645446660,-400.0,0.00018999,2]
[377980986,1754645446669,-400.0,0.00018999,2]
[377980988,1754645446678,-730.59,0.00018999,2]
[377980991,1754645446687,-516.97,0.00018999,2]
[377980993,1754645446697,-445.68,0.00018999,2]
[377980995,1754645446706,-400.0,0.00018999,2]
[377980997,1754645446715,-400.0,0.00018999,2]
[377980999,1754645446724,-400.0,0.00018999,2]
[377981001,1754645446734,-400.0,0.00018999,2]
[377981003,1754645446742,-444.79,0.00018999,2]
[377981005,1754645446752,-400.0,0.00018999,2]
[377981007,1754645446762,-183.89163771,0.00018999,2]
[377981009,1754645446771,-400.0,0.00018999,2]
[377981011,1754645446780,-400.0,0.00018999,2]
[377981013,1754645446789,-772.92,0.00018999,2]
[377981015,1754645446798,-605.3,0.00018999,2]
[377981017,1754645446807,-400.0,0.00018999,2]
[377981019,1754645446817,-545.2,0.00018999,2]
[377981020,1754645446829,-568.02,0.00018999,2]
[377981022,1754645446838,-399.51469393,0.00018999,2]
[377981024,1754645446848,-435.57,0.00018999,2]
[377981027,1754645446857,-318.36070025,0.00018999,2]
[377981029,1754645446866,-400.0,0.00018999,2]
[377981031,1754645446875,-1433.09,0.00018999,2]
[377981033,1754645446885,-475.25,0.00018999,2]
[377981035,1754645446894,-736.18,0.00018999,2]
[377981037,1754645446903,-721.78,0.00018999,2]
[377981039,1754645446912,-400.0,0.00018999,2]
[377981041,1754645446921,-400.0,0.00018999,2]
[377981042,1754645446931,-400.0,0.00018999,2]
[377981044,1754645446941,-1236.21,0.00018999,2]
[377981046,1754645446950,-732.27,0.00018999,2]
[377981049,1754645446960,-670.02,0.00018999,2]
[377981050,1754645446970,-400.0,0.00018999,2]
[377981053,1754645446980,-1372.34,0.00018999,2]
[377981055,1754645446990,-400.0,0.00018999,2]
[377981057,1754645446999,-1622.28,0.00018999,2]
[377981059,1754645447009,-450.36,0.00018999,2]
[377981061,1754645447019,-11584.61,0.00018999,2]
[377981063,1754645447030,-449.55,0.00018999,2]
[377981065,1754645447040,-400.0,0.00018999,2]
[377981067,1754645447049,-1057.36,0.00018999,2]
[377981069,1754645447059,-400.0,0.00018999,2]
[377981071,1754645447068,-716.02,0.00018999,2]
[377981073,1754645447077,-611.87,0.00018999,2]
[377981075,1754645447087,-885.35,0.00018999,2]
[377981077,1754645447096,-422.16,0.00018999,2]
[377981079,1754645447106,-400.0,0.00018999,2]
[377981081,1754645447115,-500.0,0.00018999,2]
[377981082,1754645447124,-500.0,0.00018999,2]
[377981084,1754645447134,-500.0,0.00018999,2]
[377981086,1754645447143,-500.0,0.00018999,2]
[377981088,1754645447153,-500.0,0.00018999,2]
[377981091,1754645447163,-500.0,0.00018999,2]
[377981093,1754645447172,-500.0,0.00018999,2]
[377981095,1754645447181,-400.0,0.00018999,2]
[377981096,1754645447190,-500.0,0.00018999,2]
[377981098,1754645447199,-635.20078002,0.00018999,2]
[377981100,1754645447208,-400.0,0.00018999,2]
[377981102,1754645447218,-400.0,0.00018999,2]
[377981103,1754645447227,-400.0,0.00018999,2]
[377981104,1754645447237,-400.0,0.00018999,2]
[377981105,1754645447246,-400.0,0.00018999,2]
[377981106,1754645447255,-400.0,0.00018999,2]
[377981107,1754645447265,-400.0,0.00018999,2]
[377981108,1754645447274,-434.25,0.00018999,2]
[377981109,1754645447283,-400.0,0.00018999,2]
[377981110,1754645447293,-1014.89,0.00018999,2]
[377981111,1754645447303,-400.0,0.00018999,2]
[377981113,1754645447312,-400.0,0.00018999,2]
[377981115,1754645447321,-400.0,0.00018999,2]
[377981117,1754645447332,-400.0,0.00018999,2]
[377981119,1754645447341,-400.0,0.00018999,2]
[377981121,1754645447350,-1261.94,0.00018999,2]
[377981123,1754645447359,-734.03,0.00018999,2]
[377981125,1754645447370,-400.0,0.00018999,2]
[377981127,1754645447379,-411.28,0.00018999,2]
[377981129,1754645447388,-400.0,0.00018999,2]
[377981131,1754645447398,-567.21,0.00018999,2]
[377981133,1754645447407,-400.0,0.00018999,2]
[377981135,1754645447417,-515.55,0.00018999,2]
[377981137,1754645447426,-558.6,0.00018999,2]
[377981139,1754645447436,-553.15,0.00018999,2]
[377981141,1754645447449,-400.0,0.00018999,2]
[377981143,1754645447458,-400.0,0.00018999,2]
[377981145,1754645447467,-400.0,0.00018999,2]
[377981147,1754645447476,-400.0,0.00018999,2]
[377981149,1754645447486,-400.0,0.00018999,2]
[377981151,1754645447495,-400.0,0.00018999,2]
[377981153,1754645447505,-1010.94,0.00018999,2]
[377981155,1754645447514,-894.83,0.00018999,2]
[377981156,1754645447524,-400.0,0.00018999,2]
[377981157,1754645447535,-400.0,0.00018999,2]
[377981158,1754645447544,-567.7,0.00018999,2]
[377981159,1754645447553,-400.0,0.00018999,2]
[377981160,1754645447563,-400.0,0.00018999,2]
[377981161,1754645447572,-400.0,0.00018999,2]
[377981162,1754645447581,-400.0,0.00018999,2]
[377981163,1754645447591,-705.84,0.00018999,2]
[377981164,1754645447600,-400.0,0.00018999,2]
[377981165,1754645447609,-400.0,0.00018999,2]
[377981166,1754645447619,-400.0,0.00018999,2]
[377981167,1754645447629,-400.0,0.00018999,2]
[377981168,1754645447638,-400.0,0.00018999,2]
[377981169,1754645447647,-1026799.47133545,0.00019,2]
[377981170,1754645448810,-400.0,0.00018771,2]
[377981171,1754645448820,-400.0,0.00018771,2]
[377981172,1754645448830,-1261.31,0.00018772,2]
[377981173,1754645448839,-400.0,0.00018999,2]
[377981174,1754645448849,-21736.69023279,0.00019,2]
[377981184,1754645631540,150.0,0.000166,2]
[377981185,1754645631974,150.0,0.0001778,2]
[377981189,1754645807906,329.29,0.00015068,2]
[377981190,1754645808195,329.29,0.00016664,2]
[377981194,1754645863928,269.71,0.00013699,2]
[377981195,1754645929724,386.30939533,0.0003013,120]
[377981196,1754645931950,500.0,0.0003013,120]
[377981201,1754645978494,22486.12,0.00017922,2]
[377981203,1754646007537,-307.65047094,0.00018006,2]
[377981204,1754646010275,-111.34952906,0.00018006,2]
[377981205,1754646040764,1539.0,0.0003013,120]
[377981206,1754646075503,506.0,0.00017152,2]
[377981208,1754646100737,178.0,0.0003013,120]
[377981213,1754646151182,1000.0,0.00017861,2]
[377981214,1754646158237,150.0,0.000166,2]
[377981215,1754646159436,150.0,0.0001778,2]
[377981216,1754646167234,849.81444577,0.0003013,120]
[377981224,1754646309488,150.0,0.00017088,2]
[377981225,1754646319467,150.0,0.00017088,2]
[377981229,1754646487914,190.31881909,0.00017946,2]
[377981233,1754646628864,495.95600016,0.00018,2]
[377981238,1754646632151,-176.26,0.00018031,2]
[377981240,1754646632164,-1000.0,0.00018035,4]
[377981242,1754646632174,-250.0,0.00018035,2]
[377981244,1754646632183,-408.72957114,0.00018039,2]
[377981245,1754646632248,-885.96865012,0.00018039,2]
[377981246,1754646632260,-1205.30177874,0.00018039,2]
[377981247,1754646632270,-329.29,0.0001826,2]
[377981248,1754646632280,-190.31881909,0.00018669,2]
[377981249,1754646632290,-195.73747731,0.0001867,2]
[377981250,1754646632300,-655.07284222,0.0001867,2]
[377981251,1754646632309,-1200.0,0.0001867,2]
[377981252,1754646632319,-3886.1381,0.00018671,2]
[377981253,1754646632329,-655.07284216,0.00018696,2]
[377981254,1754646632338,-151.0,0.00018708,2]
[377981255,1754646632348,-151.0,0.00018709,2]
[377981256,1754646632357,-151.0,0.0001871,2]
[377981257,1754646632367,-151.0,0.0001871,2]
[377981258,1754646632376,-13.96934057,0.00018721,2]
[377981259,1754646632387,-641.10350159,0.00018721,2]
[377981260,1754646632398,-655.07284216,0.00018747,2]
[377981261,1754646632407,-176.21934061,0.00018759,2]
[377981262,1754646632419,-671.78131946,0.00018759,2]
[377981263,1754646632429,-151.0,0.0001876,2]
[377981264,1754646632439,-600.0,0.0001876,2]
[377981265,1754646632449,-160.0,0.0001876,2]
[377981266,1754646632458,-3218.4747373,0.0001876,2]
[377981267,1754646632470,-485.98244107,0.0001876,2]
[377981268,1754646632531,-1494.97966607,0.0001876,2]
[377981269,1754646632540,-267.46074303,0.0001876,2]
[377981270,1754646632550,-500.0,0.0001876,2]
[377981271,1754646632559,-400.0,0.00018769,2]
[377981272,1754646632569,-480.55,0.00018769,2]
[377981274,1754646632578,-400.0,0.00018769,2]
[377981276,1754646632588,-400.0,0.00018769,2]
[377981278,1754646632597,-400.0,0.00018769,2]
[377981280,1754646632607,-400.0,0.00018769,2]
[377981282,1754646632616,-400.0,0.00018769,2]
[377981284,1754646632626,-400.0,0.00018769,2]
[377981286,1754646632636,-209.25303761,0.00018769,2]
[377981288,1754646632645,-544.66,0.00018769,2]
[377981290,1754646632655,-598.35,0.00018769,2]
[377981292,1754646632664,-400.0,0.00018769,2]
[377981294,1754646632673,-400.0,0.00018769,2]
[377981296,1754646632683,-273.8164897,0.00018769,2]
[377981299,1754646632696,-126.1835103,0.00018769,2]
[377981300,1754646632707,-400.0,0.00018769,2]
[377981303,1754646632721,-480.71,0.00018769,2]
[377981305,1754646632732,-400.0,0.00018769,2]
[377981307,1754646632741,-288.07674834,0.00018769,2]
[377981310,1754646632762,-111.92325166,0.00018769,2]
[377981312,1754646632775,-400.0,0.00018769,2]
[377981314,1754646632785,-400.0,0.00018769,2]
[377981316,1754646632794,-400.0,0.00018769,2]
[377981318,1754646632804,-670.41,0.00018769,2]
[377981321,1754646632815,-400.0,0.00018769,2]
[377981323,1754646632825,-985.82,0.00018769,2]